Workbook

Sheet Setup
A1: =Translations!B83 -> MCG Tools | H1: ABCDH
A2: =Translations!B82 -> Version 0.365.1 | G2: =NOW() -> 2015-11-17T09:00:17.810
B3: =Translations!B2 -> Setup
A6: =Translations!B3 -> CMM | B6: =Translations!B7 -> Machine | C6: CMM | E6: =Translations!B9 -> Scales resolution | F6: 0.0001 | G6: mm
B7: =Translations!B8 -> Serial Number | C7: Bridge | E7: =Translations!B10 -> Single point repeatability | F7: 0.001 | G7: mm
B8: =Translations!B40 -> Squareness sign convention | C8: 4 | E8: =Translations!B97 -> (L in mm) | F8: 2.5 | G8: L | H8: 8
G9: 250
A11: =Translations!B4 -> Measurement configuration | B11: =Translations!B17 -> MCG Identification | C11: SN | E11: =Translations!B11 -> Probe type | F11: TP20
B12: =Translations!B18 -> Arm length | C12: 4 | D12: mm | E12: =Translations!B12 -> Probe Identification | F12: W xx xxx
B14: =Translations!B16 -> Operator | C14: Operator
A16: =Translations!B86 -> Measuring conditions
B17: =Translations!B87 -> Temperature | C17: 20 | D17: degC
B18: =Translations!B88 -> Atmospheric pressure | C18: 1013 | D18: mbar
B19: =Translations!B89 -> Air humidity | C19: 50 | D19: %
B20: =Translations!B81 -> Comments
A25: =Translations!B5 -> DMIS sequence
A28: =Translations!B6 -> Data import and analysis
A32: =Translations!B19 -> Translation | C32: 2
B35: =Translations!B112 -> Renishaw, Inc
B36: =Translations!B113 -> 5277 Trillium Boulevard
B37: =Translations!B114 -> Hoffman Estates, IL, 60175
B38: =Translations!B115 -> Tel. (847) 286-9953
B39: www.renishaw.com

Sheet DMIS
A1: =Translations!B83 -> MCG Tools | H1: ABCDH
A2: =Translations!B82 -> Version 0.365.1 | G2: =NOW() -> 2015-11-17T09:00:17.810
B3: =Translations!B41 -> DMIS Sequence
A6: =Translations!B116 -> DMO File Name | C6: c:\Default.DMO
A8: =Translations!B27 -> Radius | C8: 380
A10: =Translations!B44 -> Number of points per circle
A12: =Translations!B45 -> Circles latitude | C12: 45 | D12: =Translations!B46 -> ° north, equator, | E12: 40 | F12: =Translations!B47 -> ° south
A14: Software
A16: =Translations!B56 -> Fork length : | C16: 30 | D16: mm
A17: =Translations!B57 -> Angle : | C17: 10 | D17: °
A20: =Translations!B48 -> Directory
A21: =Translations!B21 -> File

Sheet Data
A1: =Setup!A1 -> MCG Tools | S1: ABCDH
A2: =Translations!B82 -> Version 0.365.1
B3: =Translations!B24 -> Data points
A6: =Translations!B21 -> File | B6: c:\MCG150d.dmo
A7: =Translations!B22 -> Date Time | B7: =HiddenDataResult!B26 -> 2015-04-07T18:08:36
D10: Calculate | H10: =Translations!B106 -> Target Points | I10: 0 | J10: 0 | M10: =Translations!B27 -> Radius | O10: =HiddenDataResult!C2 -> 380.0000233 | P10: =HiddenDataResult!H1 -> mm | Q10: =Translations!B29 -> min | R10: =HiddenDataResult!C6 -> -0.02330849247 | S10: =HiddenDataResult!H2 -> um
L11: =Translations!B26 -> Sphere | Q11: =Translations!B30 -> max | R11: =HiddenDataResult!C7 -> 0.01988930961 | S11: =S10 -> um
A12: =Translations!B23 -> Number of points | B12: 72 | D12: X | E12: Y | F12: Z | H12: X | I12: Y | J12: Z | N12: O.x | O12: =HiddenDataResult!C3 -> -1.64882172e-14 | P12: =P10 -> mm | Q12: =Translations!B31 -> span | R12: =HiddenDataResult!C8 -> 0.04319780209 | S12: =S10 -> um
C13: 1 | D13: 378.554 | E13: -33.1192 | F13: 0 | H13: 378.554 | I13: -33.1192 | J13: 0 | M13: =Translations!B28 -> Centre O | N13: O.y | O13: =HiddenDataResult!C4 -> -6.879365443e-15 | P13: =P10 -> mm | Q13: =Translations!B32 -> Standard deviation | R13: =HiddenDataResult!C9 -> 0.0107417197 | S13: =S10 -> um
C14: 2 | D14: 380 | E14: 0 | F14: 0 | H14: 380 | I14: 0 | J14: 0 | N14: O.z | O14: =HiddenDataResult!C5 -> -3.960235152e-06 | P14: =P10 -> mm
C15: 3 | D15: 378.554 | E15: 33.1192 | F15: 0 | H15: 378.554 | I15: 33.1192 | J15: 0 | Q15: =Translations!B98 -> Admissible error | R15: =HiddenDataResult!C31 -> 4.020000093 | S15: =S11 -> um
C16: 4 | D16: 291.0969 | E16: 244.2593 | F16: 0 | H16: 291.0969 | I16: 244.2593 | J16: 0 | Q16: =Translations!B99 -> Max measured error | R16: =HiddenDataResult!C32 -> 0.02330849247 | S16: =S11 -> um
C17: 5 | D17: 268.7006 | E17: 268.7006 | F17: 0 | H17: 268.7006 | I17: 268.7006 | J17: 0
C18: 6 | D18: 244.2593 | E18: 291.0969 | F18: 0 | H18: 244.2593 | I18: 291.0969 | J18: 0
C19: 7 | D19: 33.1192 | E19: 378.554 | F19: 0 | H19: 33.1192 | I19: 378.554 | J19: 0 | M19: =Translations!B34 -> Relative scale errors | N19: Jx | O19: =HiddenDataResult!C10 -> -0.02025884198 | P19: =HiddenDataResult!I2 -> um/m | Q19: =Q10 -> min | R19: =HiddenDataResult!C22 -> -0.01564179987 | S19: =S10 -> um
C20: 8 | D20: 0 | E20: 380 | F20: 0 | H20: 0 | I20: 380 | J20: 0 | N20: Jy | O20: =HiddenDataResult!C11 -> -0.02025884197 | P20: =P19 -> um/m | Q20: =Q11 -> max | R20: =HiddenDataResult!C23 -> 0.01712765621 | S20: =S11 -> um
C21: 9 | D21: -33.1192 | E21: 378.554 | F21: 0 | H21: -33.1192 | I21: 378.554 | J21: 0 | L21: =Translations!B33 -> Identified geometrical errors | N21: Jz | O21: =HiddenDataResult!C12 -> 0.04664975624 | P21: =P19 -> um/m | Q21: =Q12 -> span | R21: =HiddenDataResult!C24 -> 0.03276945609 | S21: =S12 -> um
C22: 10 | D22: -244.2593 | E22: 291.0969 | F22: 0 | H22: -244.2593 | I22: 291.0969 | J22: 0 | Q22: =Q13 -> Standard deviation | R22: =HiddenDataResult!C25 -> 0.009236453146 | S22: =S13 -> um
C23: 11 | D23: -268.7006 | E23: 268.7006 | F23: 0 | H23: -268.7006 | I23: 268.7006 | J23: 0 | N23: XY | O23: =HiddenDataResult!C13 -> -7.424060321e-19 | P23: =HiddenDataResult!H3 -> uRad
C24: 12 | D24: -291.0969 | E24: 244.2593 | F24: 0 | H24: -291.0969 | I24: 244.2593 | J24: 0 | M24: =Translations!B35 -> Squareness | N24: YZ | O24: =HiddenDataResult!C14 -> 3.816715949e-18 | P24: =P23 -> uRad | Q24: =Q15 -> Admissible error | R24: =R15 -> 4.020000093 | S24: =S11 -> um
C25: 13 | D25: -378.554 | E25: 33.1192 | F25: 0 | H25: -378.554 | I25: 33.1192 | J25: 0 | N25: ZX | O25: =HiddenDataResult!C15 -> 2.755669953e-12 | P25: =P23 -> uRad | Q25: =Translations!B100 -> Max residual error | R25: =HiddenDataResult!C33 -> 0.01712765621 | S25: =S24 -> um
C26: 14 | D26: -380 | E26: 0 | F26: 0 | H26: -380 | I26: 0 | J26: 0
C27: 15 | D27: -378.554 | E27: -33.1192 | F27: 0 | H27: -378.554 | I27: -33.1192 | J27: 0
C28: 16 | D28: -291.0969 | E28: -244.2593 | F28: 0 | H28: -291.0969 | I28: -244.2593 | J28: 0 | N28: TX | O28: =HiddenDataResult!C19 -> 7.848304729e-12 | P28: =S11 -> um
C29: 17 | D29: -268.7006 | E29: -268.7006 | F29: 0 | H29: -268.7006 | I29: -268.7006 | J29: 0 | L29: =Translations!B36 -> Pivot | M29: =Translations!B37 -> Offsets | N29: TY | O29: =HiddenDataResult!C20 -> -1.372434159e-19 | P29: =P28 -> um
C30: 18 | D30: -244.2593 | E30: -291.0969 | F30: 0 | H30: -244.2593 | I30: -291.0969 | J30: 0 | N30: TZ | O30: =HiddenDataResult!C21 -> -0.001907064766 | P30: =P28 -> um
C31: 19 | D31: -33.1192 | E31: -378.554 | F31: 0 | H31: -33.1192 | I31: -378.554 | J31: 0
C32: 20 | D32: 0 | E32: -380 | F32: 0 | H32: 0 | I32: -380 | J32: 0
C33: 21 | D33: 33.1192 | E33: -378.554 | F33: 0 | H33: 33.1192 | I33: -378.554 | J33: 0 | N33: =Translations!B38 -> Record in Database
C34: 22 | D34: 244.2593 | E34: -291.0969 | F34: 0 | H34: 244.2593 | I34: -291.0969 | J34: 0 | L34: =Translations!B70 -> Database
C35: 23 | D35: 268.7006 | E35: -268.7006 | F35: 0 | H35: 268.7006 | I35: -268.7006 | J35: 0
C36: 24 | D36: 291.0969 | E36: -244.2593 | F36: 0 | H36: 291.0969 | I36: -244.2593 | J36: 0
C37: 25 | D37: 267.6781 | E37: -23.4188 | F37: 268.7006 | H37: 267.6781 | I37: -23.4188 | J37: 268.7006
C38: 26 | D38: 268.7006 | E38: 0 | F38: 268.7006 | H38: 268.7006 | I38: 0 | J38: 268.7006 | L38: =Translations!B69 -> Charts gain | M38: 2500
C39: 27 | D39: 267.6781 | E39: 23.4188 | F39: 268.7006 | H39: 267.6781 | I39: 23.4188 | J39: 268.7006
C40: 28 | D40: 205.8366 | E40: 172.7174 | F40: 268.7006 | H40: 205.8366 | I40: 172.7174 | J40: 268.7006
C41: 29 | D41: 190 | E41: 190 | F41: 268.7006 | H41: 190 | I41: 190 | J41: 268.7006
C42: 30 | D42: 172.7174 | E42: 205.8366 | F42: 268.7006 | H42: 172.7174 | I42: 205.8366 | J42: 268.7006
C43: 31 | D43: 23.4188 | E43: 267.6781 | F43: 268.7006 | H43: 23.4188 | I43: 267.6781 | J43: 268.7006
C44: 32 | D44: 0 | E44: 268.7006 | F44: 268.7006 | H44: 0 | I44: 268.7006 | J44: 268.7006
C45: 33 | D45: -23.4188 | E45: 267.6781 | F45: 268.7006 | H45: -23.4188 | I45: 267.6781 | J45: 268.7006
C46: 34 | D46: -172.7174 | E46: 205.8366 | F46: 268.7006 | H46: -172.7174 | I46: 205.8366 | J46: 268.7006
C47: 35 | D47: -190 | E47: 190 | F47: 268.7006 | H47: -190 | I47: 190 | J47: 268.7006
C48: 36 | D48: -205.8366 | E48: 172.7174 | F48: 268.7006 | H48: -205.8366 | I48: 172.7174 | J48: 268.7006
C49: 37 | D49: -267.6781 | E49: 23.4188 | F49: 268.7006 | H49: -267.6781 | I49: 23.4188 | J49: 268.7006
C50: 38 | D50: -268.7006 | E50: 0 | F50: 268.7006 | H50: -268.7006 | I50: 0 | J50: 268.7006
C51: 39 | D51: -267.6781 | E51: -23.4188 | F51: 268.7006 | H51: -267.6781 | I51: -23.4188 | J51: 268.7006
C52: 40 | D52: -205.8366 | E52: -172.7174 | F52: 268.7006 | H52: -205.8366 | I52: -172.7174 | J52: 268.7006
C53: 41 | D53: -190 | E53: -190 | F53: 268.7006 | H53: -190 | I53: -190 | J53: 268.7006
C54: 42 | D54: -172.7174 | E54: -205.8366 | F54: 268.7006 | H54: -172.7174 | I54: -205.8366 | J54: 268.7006
C55: 43 | D55: -23.4188 | E55: -267.6781 | F55: 268.7006 | H55: -23.4188 | I55: -267.6781 | J55: 268.7006
C56: 44 | D56: 0 | E56: -268.7006 | F56: 268.7006 | H56: 0 | I56: -268.7006 | J56: 268.7006
C57: 45 | D57: 23.4188 | E57: -267.6781 | F57: 268.7006 | H57: 23.4188 | I57: -267.6781 | J57: 268.7006
C58: 46 | D58: 172.7174 | E58: -205.8366 | F58: 268.7006 | H58: 172.7174 | I58: -205.8366 | J58: 268.7006
C59: 47 | D59: 190 | E59: -190 | F59: 268.7006 | H59: 190 | I59: -190 | J59: 268.7006
C60: 48 | D60: 205.8366 | E60: -172.7174 | F60: 268.7006 | H60: 205.8366 | I60: -172.7174 | J60: 268.7006
C61: 49 | D61: 289.9892 | E61: -25.3708 | F61: -244.2593 | H61: 289.9892 | I61: -25.3708 | J61: -244.2593
C62: 50 | D62: 291.0969 | E62: 0 | F62: -244.2593 | H62: 291.0969 | I62: 0 | J62: -244.2593
C63: 51 | D63: 289.9892 | E63: 25.3708 | F63: -244.2593 | H63: 289.9892 | I63: 25.3708 | J63: -244.2593
C64: 52 | D64: 222.9932 | E64: 187.1135 | F64: -244.2593 | H64: 222.9932 | I64: 187.1135 | J64: -244.2593
C65: 53 | D65: 205.8366 | E65: 205.8366 | F65: -244.2593 | H65: 205.8366 | I65: 205.8366 | J65: -244.2593
C66: 54 | D66: 187.1135 | E66: 222.9932 | F66: -244.2593 | H66: 187.1135 | I66: 222.9932 | J66: -244.2593
C67: 55 | D67: 25.3708 | E67: 289.9892 | F67: -244.2593 | H67: 25.3708 | I67: 289.9892 | J67: -244.2593
C68: 56 | D68: 0 | E68: 291.0969 | F68: -244.2593 | H68: 0 | I68: 291.0969 | J68: -244.2593
C69: 57 | D69: -25.3708 | E69: 289.9892 | F69: -244.2593 | H69: -25.3708 | I69: 289.9892 | J69: -244.2593
C70: 58 | D70: -187.1135 | E70: 222.9932 | F70: -244.2593 | H70: -187.1135 | I70: 222.9932 | J70: -244.2593
C71: 59 | D71: -205.8366 | E71: 205.8366 | F71: -244.2593 | H71: -205.8366 | I71: 205.8366 | J71: -244.2593
C72: 60 | D72: -222.9932 | E72: 187.1135 | F72: -244.2593 | H72: -222.9932 | I72: 187.1135 | J72: -244.2593
C73: 61 | D73: -289.9892 | E73: 25.3708 | F73: -244.2593 | H73: -289.9892 | I73: 25.3708 | J73: -244.2593
C74: 62 | D74: -291.0969 | E74: 0 | F74: -244.2593 | H74: -291.0969 | I74: 0 | J74: -244.2593
C75: 63 | D75: -289.9892 | E75: -25.3708 | F75: -244.2593 | H75: -289.9892 | I75: -25.3708 | J75: -244.2593
C76: 64 | D76: -222.9932 | E76: -187.1135 | F76: -244.2593 | H76: -222.9932 | I76: -187.1135 | J76: -244.2593
C77: 65 | D77: -205.8366 | E77: -205.8366 | F77: -244.2593 | H77: -205.8366 | I77: -205.8366 | J77: -244.2593
C78: 66 | D78: -187.1135 | E78: -222.9932 | F78: -244.2593 | H78: -187.1135 | I78: -222.9932 | J78: -244.2593
C79: 67 | D79: -25.3708 | E79: -289.9892 | F79: -244.2593 | H79: -25.3708 | I79: -289.9892 | J79: -244.2593
C80: 68 | D80: 0 | E80: -291.0969 | F80: -244.2593 | H80: 0 | I80: -291.0969 | J80: -244.2593
C81: 69 | D81: 25.3708 | E81: -289.9892 | F81: -244.2593 | H81: 25.3708 | I81: -289.9892 | J81: -244.2593
C82: 70 | D82: 187.1135 | E82: -222.9932 | F82: -244.2593 | H82: 187.1135 | I82: -222.9932 | J82: -244.2593
C83: 71 | D83: 205.8366 | E83: -205.8366 | F83: -244.2593 | H83: 205.8366 | I83: -205.8366 | J83: -244.2593
C84: 72 | D84: 222.9932 | E84: -187.1135 | F84: -244.2593 | H84: 222.9932 | I84: -187.1135 | J84: -244.2593

Sheet Analysis
A1: =Translations!B39 -> MCG Analysis | H1: ABCDH
A2: =Translations!B82 -> Version 0.365.1
B3: =Data!B6 -> c:\MCG150d.dmo
A5: =Translations!B26 -> Sphere | F5: =Translations!B104 -> Current form errors
B6: =Translations!B27 -> Radius | C6: =Data!O10 -> 380.0000233 | D6: =Data!P10 -> mm | F6: =Translations!B29 -> min | G6: =Data!R10 -> -0.02330849247 | H6: =Data!S10 -> um
B7: O.x | C7: =Data!O12 -> -1.64882172e-14 | D7: =Data!P12 -> mm | F7: =Translations!B30 -> max | G7: =Data!R11 -> 0.01988930961 | H7: =Data!S11 -> um
A8: =Translations!B28 -> Centre O | B8: O.y | C8: =Data!O13 -> -6.879365443e-15 | D8: =Data!P13 -> mm | F8: =Translations!B31 -> span | G8: =Data!R12 -> 0.04319780209 | H8: =Data!S12 -> um
B9: O.z | C9: =Data!O14 -> -3.960235152e-06 | D9: =Data!P14 -> mm | F9: =Translations!B32 -> Standard deviation | G9: =Data!R13 -> 0.0107417197 | H9: =Data!S13 -> um
F10: =Data!Q15 -> Admissible error | G10: =Data!R15 -> 4.020000093 | H10: =Data!S15 -> um
F11: =Data!Q16 -> Max measured error | G11: =Data!R16 -> 0.02330849247 | H11: =Data!S16 -> um
A13: =Translations!B33 -> Identified geometrical errors | F13: =Translations!B105 -> Form errors if identified geometrical errors were corrected
A15: =Translations!B34 -> Relative scale errors | B15: Jx | C15: =Data!O19 -> -0.02025884198 | D15: =Data!P19 -> um/m | F15: =F6 -> min | G15: =Data!R19 -> -0.01564179987 | H15: =Data!S19 -> um
B16: Jy | C16: =Data!O20 -> -0.02025884197 | D16: =Data!P20 -> um/m | F16: =F7 -> max | G16: =Data!R20 -> 0.01712765621 | H16: =Data!S20 -> um
B17: Jz | C17: =Data!O21 -> 0.04664975624 | D17: =Data!P21 -> um/m | F17: =F8 -> span | G17: =Data!R21 -> 0.03276945609 | H17: =Data!S21 -> um
B18: XY | C18: =Data!O23 -> -7.424060321e-19 | D18: =Data!P23 -> uRad | F18: =F9 -> Standard deviation | G18: =Data!R22 -> 0.009236453146 | H18: =Data!S22 -> um
A19: =Translations!B35 -> Squareness | B19: YZ | C19: =Data!O24 -> 3.816715949e-18 | D19: =Data!P24 -> uRad | F19: =Data!Q24 -> Admissible error | G19: =Data!R24 -> 4.020000093 | H19: =Data!S24 -> um
B20: ZX | C20: =Data!O25 -> 2.755669953e-12 | D20: =Data!P25 -> uRad | F20: =Data!Q25 -> Max residual error | G20: =Data!R25 -> 0.01712765621 | H20: =Data!S25 -> um
A22: =Data!L38 -> Charts gain | B22: =Data!M38 -> 2500
A48: =A1 -> MCG Analysis | O48: ABCDH
A49: =A2 -> Version 0.365.1
B50: =B3 -> c:\MCG150d.dmo | O50: =NOW() -> 2015-11-17T09:00:17.810
A51: =Translations!B71 &HiddenDataResult!H2 -> Data errors and identified geometrical errors in um
A73: =Translations!B72 & HiddenDataResult!H2 -> Residual form errors in um

Sheet Database
A1: =Setup!A1 -> MCG Tools | O1: ABCDH | U1: ABCDH
A2: =Setup!A2 -> Version 0.365.1
B3: =Translations!B70 -> Database
A4: =Translations!B22 -> Date Time | B4: Jx ( µm/m ) | C4: Jy ( µm / m ) | D4: Jz ( µm/m ) | E4: X┴Y ( µrad ) | F4: Y┴Z ( µrad ) | G4: Z┴X ( µrad ) | H4: Min (*1000) | I4: Max (*1000) | J4: =Translations!B98 -> Admissible error | K4: Span (*1000) | L4: =Translations!B21 -> File | M4: =Translations!B87 -> Temperature | N4: =Translations!B88 -> Atmospheric pressure | O4: =Translations!B89 -> Air humidity | P4: =Translations!B17 -> MCG Identification | Q4: =Translations!B18 -> Arm length | R4: =Translations!B11 -> Probe type | S4: =Translations!B12 -> Probe Identification | T4: =Translations!B16 -> Operator | U4: =Translations!B81 -> Comments

Sheet Database charts
A1: =Setup!A1 -> MCG Tools | M1: ABCDH | N1: =A1 -> MCG Tools | V1: ABCDH | W1: =N1 -> MCG Tools | AE1: ABCDH
A2: =Analysis!A2 -> Version 0.365.1 | N2: =A2 -> Version 0.365.1 | W2: =N2 -> Version 0.365.1
B3: =Translations!B79 -> Database charts | L3: =NOW() -> 2015-11-17T09:00:17.810 | U3: =NOW() -> 2015-11-17T09:00:17.810 | AD3: =NOW() -> 2015-11-17T09:00:17.810

Sheet Data2 (hidden)
A1: 380.0000233 | B1: 0 | C1: 379.9807774 | D1: 0 | E1: 380.0000233 | F1: 0 | G1: 379.9807774 | H1: 0 | I1: 380.0000233 | J1: 0 | K1: 379.9807774 | L1: 0 | O1: data Errors | P1: Modelized errors | Q1: =Translations!B74 -> Data form errors | R1: =Translations!B75 -> Identified geometrical form errors | S1: =Translations!B76 -> Residual errors if identified geometrical errors were corrected
A2: 376.7490704 | B2: 49.59995609 | C2: 376.7299892 | D2: 49.59744399 | E2: 376.7490704 | F2: 49.59995609 | G2: 376.7299892 | H2: 49.60574065 | I2: 376.7490704 | J2: 49.59995609 | K2: 376.7299892 | L2: 49.60574065 | O2: -7.091861335e-06 | P2: -7.698360292e-06 | Q2: =O2*HiddenDataResult!$G$2 -> -0.007091861335 | R2: =P2*HiddenDataResult!$G$2 -> -0.007698360292 | S2: =Q2-R2 -> 0.0006064989577
A3: 367.0518365 | B3: 98.35124317 | C3: 367.0332464 | D3: 98.34626197 | E3: 367.0518365 | F3: 98.35124317 | G3: 367.0332464 | H3: 98.36271333 | I3: 367.0518365 | J3: 98.35124317 | K3: 367.0332464 | L3: 98.36271333 | O3: -2.330849247e-05 | P3: -7.698359964e-06 | Q3: =O3*HiddenDataResult!$G$2 -> -0.02330849247 | R3: =P3*HiddenDataResult!$G$2 -> -0.007698359964 | S3: =Q3-R3 -> -0.01561013251
A4: 351.0742439 | B4: 145.4197132 | C4: 351.056463 | D4: 145.4123481 | E4: 351.0742439 | F4: 145.4197132 | G4: 351.056463 | H4: 145.4366727 | I4: 351.0742439 | J4: 145.4197132 | K4: 351.056463 | L4: 145.4366727 | O4: -7.091861335e-06 | P4: -7.698360292e-06 | Q4: =O4*HiddenDataResult!$G$2 -> -0.007091861335 | R4: =P4*HiddenDataResult!$G$2 -> -0.007698360292 | S4: 0.0006064989577
A5: 329.0896736 | B5: 190.0000117 | C5: 329.0730062 | D5: 189.9903887 | E5: 329.0896736 | F5: 190.0000117 | G5: 329.0730062 | H5: 190.0221703 | I5: 329.0896736 | J5: 190.0000117 | K5: 329.0730062 | L5: 190.0221703 | O5: -9.063624361e-06 | P5: -7.698360253e-06 | Q5: =O5*HiddenDataResult!$G$2 -> -0.009063624361 | R5: =P5*HiddenDataResult!$G$2 -> -0.007698360253 | S5: -0.001365264108
A6: 301.4742878 | B6: 231.3293572 | C6: 301.459019 | D6: 231.3176411 | E6: 301.4742878 | F6: 231.3293572 | G6: 301.459019 | H6: 231.3563359 | I6: 301.4742878 | J6: 231.3293572 | K6: 301.459019 | L6: 231.3563359 | O6: 9.429295574e-06 | P6: -7.698360628e-06 | Q6: =O6*HiddenDataResult!$G$2 -> 0.009429295574 | R6: =P6*HiddenDataResult!$G$2 -> -0.007698360628 | S6: 0.0171276562
A7: 268.7005933 | B7: 268.7005933 | C7: 268.6869844 | D7: 268.6869844 | E7: 268.7005933 | F7: 268.7005933 | G7: 268.6869844 | H7: 268.7319304 | I7: 268.7005933 | J7: 268.7005933 | K7: 268.6869844 | L7: 268.7319304 | O7: -9.063624304e-06 | P7: -7.698360253e-06 | Q7: =O7*HiddenDataResult!$G$2 -> -0.009063624304 | R7: =P7*HiddenDataResult!$G$2 -> -0.007698360253 | S7: -0.001365264051
A8: 231.3293572 | B8: 301.4742878 | C8: 231.3176411 | D8: 301.459019 | E8: 231.3293572 | F8: 301.4742878 | G8: 231.3176411 | H8: 301.5094471 | I8: 231.3293572 | J8: 301.4742878 | K8: 231.3176411 | L8: 301.5094471 | O8: -7.091861335e-06 | P8: -7.698360296e-06 | Q8: =O8*HiddenDataResult!$G$2 -> -0.007091861335 | R8: =P8*HiddenDataResult!$G$2 -> -0.007698360296 | S8: 0.0006064989617
A9: 190.0000117 | B9: 329.0896736 | C9: 189.9903887 | D9: 329.0730062 | E9: 190.0000117 | F9: 329.0896736 | G9: 189.9903887 | H9: 329.1280535 | I9: 190.0000117 | J9: 329.0896736 | K9: 189.9903887 | L9: 329.1280535 | O9: -2.330849247e-05 | P9: -7.698359968e-06 | Q9: =O9*HiddenDataResult!$G$2 -> -0.02330849247 | R9: =P9*HiddenDataResult!$G$2 -> -0.007698359968 | S9: -0.0156101325
A10: 145.4197132 | B10: 351.0742439 | C10: 145.4123481 | D10: 351.056463 | E10: 145.4197132 | F10: 351.0742439 | G10: 145.4123481 | H10: 351.1151877 | I10: 145.4197132 | J10: 351.0742439 | K10: 145.4123481 | L10: 351.1151877 | O10: -7.091861335e-06 | P10: -7.698360298e-06 | Q10: =O10*HiddenDataResult!$G$2 -> -0.007091861335 | R10: =P10*HiddenDataResult!$G$2 -> -0.007698360298 | S10: 0.0006064989631
A11: 98.35124317 | B11: 367.0518365 | C11: 98.34626197 | D11: 367.0332464 | E11: 98.35124317 | F11: 367.0518365 | G11: 98.34626197 | H11: 367.0946437 | I11: 98.35124317 | J11: 367.0518365 | K11: 98.34626197 | L11: 367.0946437 | O11: -9.063624361e-06 | P11: -7.698360263e-06 | Q11: =O11*HiddenDataResult!$G$2 -> -0.009063624361 | R11: =P11*HiddenDataResult!$G$2 -> -0.007698360263 | S11: -0.001365264098
A12: 49.59995609 | B12: 376.7490704 | C12: 49.59744399 | D12: 376.7299892 | E12: 49.59995609 | F12: 376.7490704 | G12: 49.59744399 | H12: 376.7930086 | I12: 49.59995609 | J12: 376.7490704 | K12: 49.59744399 | L12: 376.7930086 | O12: 9.429295574e-06 | P12: -7.698360639e-06 | Q12: =O12*HiddenDataResult!$G$2 -> 0.009429295574 | R12: =P12*HiddenDataResult!$G$2 -> -0.007698360639 | S12: 0.01712765621
A13: 6.139062075e-13 | B13: 380.0000233 | C13: 6.138744096e-13 | D13: 379.9807774 | E13: 6.139062075e-13 | F13: 380.0000233 | G13: 6.138787408e-13 | H13: 380.0443406 | I13: 6.139062075e-13 | J13: 380.0000233 | K13: 3.23176173e-12 | L13: 380.0443406 | O13: -9.063624361e-06 | P13: -7.698360265e-06 | Q13: =O13*HiddenDataResult!$G$2 -> -0.009063624361 | R13: =P13*HiddenDataResult!$G$2 -> -0.007698360265 | S13: -0.001365264096
A14: -49.59995609 | B14: 376.7490704 | C14: -49.59744399 | D14: 376.7299892 | E14: -49.59995609 | F14: 376.7490704 | G14: -49.59744399 | H14: 376.7930086 | I14: -49.59995609 | J14: 376.7490704 | K14: -49.59744399 | L14: 376.7930086 | O14: -7.091861335e-06 | P14: -7.698360308e-06 | Q14: =O14*HiddenDataResult!$G$2 -> -0.007091861335 | R14: =P14*HiddenDataResult!$G$2 -> -0.007698360308 | S14: 0.0006064989733
A15: -98.35124317 | B15: 367.0518365 | C15: -98.34626197 | D15: 367.0332464 | E15: -98.35124317 | F15: 367.0518365 | G15: -98.34626197 | H15: 367.0946437 | I15: -98.35124317 | J15: 367.0518365 | K15: -98.34626197 | L15: 367.0946437 | O15: -2.330849247e-05 | P15: -7.698359979e-06 | Q15: =O15*HiddenDataResult!$G$2 -> -0.02330849247 | R15: =P15*HiddenDataResult!$G$2 -> -0.007698359979 | S15: -0.01561013249
A16: -145.4197132 | B16: 351.0742439 | C16: -145.4123481 | D16: 351.056463 | E16: -145.4197132 | F16: 351.0742439 | G16: -145.4123481 | H16: 351.1151877 | I16: -145.4197132 | J16: 351.0742439 | K16: -145.4123481 | L16: 351.1151877 | O16: -7.091861335e-06 | P16: -7.698360308e-06 | Q16: =O16*HiddenDataResult!$G$2 -> -0.007091861335 | R16: =P16*HiddenDataResult!$G$2 -> -0.007698360308 | S16: 0.0006064989733
A17: -190.0000117 | B17: 329.0896736 | C17: -189.9903887 | D17: 329.0730062 | E17: -190.0000117 | F17: 329.0896736 | G17: -189.9903887 | H17: 329.1280535 | I17: -190.0000117 | J17: 329.0896736 | K17: -189.9903887 | L17: 329.1280535 | O17: -9.063624361e-06 | P17: -7.698360265e-06 | Q17: =O17*HiddenDataResult!$G$2 -> -0.009063624361 | R17: =P17*HiddenDataResult!$G$2 -> -0.007698360265 | S17: -0.001365264096
A18: -231.3293572 | B18: 301.4742878 | C18: -231.3176411 | D18: 301.459019 | E18: -231.3293572 | F18: 301.4742878 | G18: -231.3176411 | H18: 301.5094471 | I18: -231.3293572 | J18: 301.4742878 | K18: -231.3176411 | L18: 301.5094471 | O18: 9.429295574e-06 | P18: -7.698360639e-06 | Q18: =O18*HiddenDataResult!$G$2 -> 0.009429295574 | R18: =P18*HiddenDataResult!$G$2 -> -0.007698360639 | S18: 0.01712765621
A19: -268.7005933 | B19: 268.7005933 | C19: -268.6869844 | D19: 268.6869844 | E19: -268.7005933 | F19: 268.7005933 | G19: -268.6869844 | H19: 268.7319304 | I19: -268.7005933 | J19: 268.7005933 | K19: -268.6869844 | L19: 268.7319304 | O19: -9.063624361e-06 | P19: -7.698360263e-06 | Q19: =O19*HiddenDataResult!$G$2 -> -0.009063624361 | R19: =P19*HiddenDataResult!$G$2 -> -0.007698360263 | S19: -0.001365264098
A20: -301.4742878 | B20: 231.3293572 | C20: -301.459019 | D20: 231.3176411 | E20: -301.4742878 | F20: 231.3293572 | G20: -301.459019 | H20: 231.3563359 | I20: -301.4742878 | J20: 231.3293572 | K20: -301.459019 | L20: 231.3563359 | O20: -7.091861335e-06 | P20: -7.698360298e-06 | Q20: =O20*HiddenDataResult!$G$2 -> -0.007091861335 | R20: =P20*HiddenDataResult!$G$2 -> -0.007698360298 | S20: 0.0006064989631
A21: -329.0896736 | B21: 190.0000117 | C21: -329.0730062 | D21: 189.9903887 | E21: -329.0896736 | F21: 190.0000117 | G21: -329.0730062 | H21: 190.0221703 | I21: -329.0896736 | J21: 190.0000117 | K21: -329.0730062 | L21: 190.0221703 | O21: -2.330849247e-05 | P21: -7.698359968e-06 | Q21: =O21*HiddenDataResult!$G$2 -> -0.02330849247 | R21: =P21*HiddenDataResult!$G$2 -> -0.007698359968 | S21: -0.0156101325
A22: -351.0742439 | B22: 145.4197132 | C22: -351.056463 | D22: 145.4123481 | E22: -351.0742439 | F22: 145.4197132 | G22: -351.056463 | H22: 145.4366727 | I22: -351.0742439 | J22: 145.4197132 | K22: -351.056463 | L22: 145.4366727 | O22: -7.091861335e-06 | P22: -7.698360296e-06 | Q22: =O22*HiddenDataResult!$G$2 -> -0.007091861335 | R22: =P22*HiddenDataResult!$G$2 -> -0.007698360296 | S22: 0.0006064989617
A23: -367.0518365 | B23: 98.35124317 | C23: -367.0332464 | D23: 98.34626197 | E23: -367.0518365 | F23: 98.35124317 | G23: -367.0332464 | H23: 98.36271333 | I23: -367.0518365 | J23: 98.35124317 | K23: -367.0332464 | L23: 98.36271333 | O23: -9.063624304e-06 | P23: -7.698360253e-06 | Q23: =O23*HiddenDataResult!$G$2 -> -0.009063624304 | R23: =P23*HiddenDataResult!$G$2 -> -0.007698360253 | S23: -0.001365264051
A24: -376.7490704 | B24: 49.59995609 | C24: -376.7299892 | D24: 49.59744399 | E24: -376.7490704 | F24: 49.59995609 | G24: -376.7299892 | H24: 49.60574065 | I24: -376.7490704 | J24: 49.59995609 | K24: -376.7299892 | L24: 49.60574065 | O24: 9.429295574e-06 | P24: -7.698360628e-06 | Q24: =O24*HiddenDataResult!$G$2 -> 0.009429295574 | R24: =P24*HiddenDataResult!$G$2 -> -0.007698360628 | S24: 0.0171276562
A25: -380.0000233 | B25: 1.227812415e-12 | C25: -379.9807774 | D25: 1.22775023e-12 | E25: -380.0000233 | F25: 1.227812415e-12 | G25: -379.9807774 | H25: 1.227955608e-12 | I25: -380.0000233 | J25: 1.227812415e-12 | K25: -379.9807774 | L25: 1.227955608e-12 | O25: -9.063624361e-06 | P25: -7.698360253e-06 | Q25: =O25*HiddenDataResult!$G$2 -> -0.009063624361 | R25: =P25*HiddenDataResult!$G$2 -> -0.007698360253 | S25: -0.001365264108
A26: -376.7490704 | B26: -49.59995609 | C26: -376.7299892 | D26: -49.59744399 | E26: -376.7490704 | F26: -49.59995609 | G26: -376.7299892 | H26: -49.60574065 | I26: -376.7490704 | J26: -49.59995609 | K26: -376.7299892 | L26: -49.60574065 | O26: 2.983144896e-06 | P26: 3.665776399e-06 | Q26: =O26*HiddenDataResult!$G$2 -> 0.002983144896 | R26: =P26*HiddenDataResult!$G$2 -> 0.003665776399 | S26: -0.000682631503
A27: -367.0518365 | B27: -98.35124317 | C27: -367.0332464 | D27: -98.34626197 | E27: -367.0518365 | F27: -98.35124317 | G27: -367.0332464 | H27: -98.36271333 | I27: -367.0518365 | J27: -98.35124317 | K27: -367.0332464 | L27: -98.36271333 | O27: 1.222960469e-05 | P27: 3.665775935e-06 | Q27: =O27*HiddenDataResult!$G$2 -> 0.01222960469 | R27: =P27*HiddenDataResult!$G$2 -> 0.003665775935 | S27: 0.008563828758
A28: -351.0742439 | B28: -145.4197132 | C28: -351.056463 | D28: -145.4123481 | E28: -351.0742439 | F28: -145.4197132 | G28: -351.056463 | H28: -145.4366727 | I28: -351.0742439 | J28: -145.4197132 | K28: -351.056463 | L28: -145.4366727 | O28: 2.983144896e-06 | P28: 3.665776399e-06 | Q28: =O28*HiddenDataResult!$G$2 -> 0.002983144896 | R28: =P28*HiddenDataResult!$G$2 -> 0.003665776399 | S28: -0.000682631503
A29: -329.0896736 | B29: -190.0000117 | C29: -329.0730062 | D29: -189.9903887 | E29: -329.0896736 | F29: -190.0000117 | G29: -329.0730062 | H29: -190.0221703 | I29: -329.0896736 | J29: -190.0000117 | K29: -329.0730062 | L29: -190.0221703 | O29: 3.969026466e-06 | P29: 3.665776348e-06 | Q29: =O29*HiddenDataResult!$G$2 -> 0.003969026466 | R29: =P29*HiddenDataResult!$G$2 -> 0.003665776348 | S29: 0.0003032501174
A30: -301.4742878 | B30: -231.3293572 | C30: -301.459019 | D30: -231.3176411 | E30: -301.4742878 | F30: -231.3293572 | G30: -301.459019 | H30: -231.3563359 | I30: -301.4742878 | J30: -231.3293572 | K30: -301.459019 | L30: -231.3563359 | O30: -4.139288876e-06 | P30: 3.665776755e-06 | Q30: =O30*HiddenDataResult!$G$2 -> -0.004139288876 | R30: =P30*HiddenDataResult!$G$2 -> 0.003665776755 | S30: -0.007805065631
A31: -268.7005933 | B31: -268.7005933 | C31: -268.6869844 | D31: -268.6869844 | E31: -268.7005933 | F31: -268.7005933 | G31: -268.6869844 | H31: -268.7319304 | I31: -268.7005933 | J31: -268.7005933 | K31: -268.6869844 | L31: -268.7319304 | O31: 3.969026466e-06 | P31: 3.665776348e-06 | Q31: =O31*HiddenDataResult!$G$2 -> 0.003969026466 | R31: =P31*HiddenDataResult!$G$2 -> 0.003665776348 | S31: 0.0003032501178
A32: -231.3293572 | B32: -301.4742878 | C32: -231.3176411 | D32: -301.459019 | E32: -231.3293572 | F32: -301.4742878 | G32: -231.3176411 | H32: -301.5094471 | I32: -231.3293572 | J32: -301.4742878 | K32: -231.3176411 | L32: -301.5094471 | O32: 2.983144896e-06 | P32: 3.665776395e-06 | Q32: =O32*HiddenDataResult!$G$2 -> 0.002983144896 | R32: =P32*HiddenDataResult!$G$2 -> 0.003665776395 | S32: -0.000682631499
A33: -190.0000117 | B33: -329.0896736 | C33: -189.9903887 | D33: -329.0730062 | E33: -190.0000117 | F33: -329.0896736 | G33: -189.9903887 | H33: -329.1280535 | I33: -190.0000117 | J33: -329.0896736 | K33: -189.9903887 | L33: -329.1280535 | O33: 1.222960469e-05 | P33: 3.66577593e-06 | Q33: =O33*HiddenDataResult!$G$2 -> 0.01222960469 | R33: =P33*HiddenDataResult!$G$2 -> 0.00366577593 | S33: 0.008563828762
A34: -145.4197132 | B34: -351.0742439 | C34: -145.4123481 | D34: -351.056463 | E34: -145.4197132 | F34: -351.0742439 | G34: -145.4123481 | H34: -351.1151877 | I34: -145.4197132 | J34: -351.0742439 | K34: -145.4123481 | L34: -351.1151877 | O34: 2.983144896e-06 | P34: 3.665776394e-06 | Q34: =O34*HiddenDataResult!$G$2 -> 0.002983144896 | R34: =P34*HiddenDataResult!$G$2 -> 0.003665776394 | S34: -0.000682631498
A35: -98.35124317 | B35: -367.0518365 | C35: -98.34626197 | D35: -367.0332464 | E35: -98.35124317 | F35: -367.0518365 | G35: -98.34626197 | H35: -367.0946437 | I35: -98.35124317 | J35: -367.0518365 | K35: -98.34626197 | L35: -367.0946437 | O35: 3.969026466e-06 | P35: 3.66577634e-06 | Q35: =O35*HiddenDataResult!$G$2 -> 0.003969026466 | R35: =P35*HiddenDataResult!$G$2 -> 0.00366577634 | S35: 0.0003032501257
A36: -49.59995609 | B36: -376.7490704 | C36: -49.59744399 | D36: -376.7299892 | E36: -49.59995609 | F36: -376.7490704 | G36: -49.59744399 | H36: -376.7930086 | I36: -49.59995609 | J36: -376.7490704 | K36: -49.59744399 | L36: -376.7930086 | O36: -4.139288876e-06 | P36: 3.665776746e-06 | Q36: =O36*HiddenDataResult!$G$2 -> -0.004139288876 | R36: =P36*HiddenDataResult!$G$2 -> 0.003665776746 | S36: -0.007805065622
A37: -1.757341667e-12 | B37: -380.0000233 | C37: -1.757251958e-12 | D37: -379.9807774 | E37: -1.757341667e-12 | F37: -380.0000233 | G37: -1.757256289e-12 | H37: -380.0443406 | I37: -1.757341667e-12 | J37: -380.0000233 | K37: -4.375139279e-12 | L37: -380.0443406 | O37: 3.969026409e-06 | P37: 3.665776339e-06 | Q37: =O37*HiddenDataResult!$G$2 -> 0.003969026409 | R37: =P37*HiddenDataResult!$G$2 -> 0.003665776339 | S37: 0.0003032500698
A38: 49.59995609 | B38: -376.7490704 | C38: 49.59744399 | D38: -376.7299892 | E38: 49.59995609 | F38: -376.7490704 | G38: 49.59744399 | H38: -376.7930086 | I38: 49.59995609 | J38: -376.7490704 | K38: 49.59744399 | L38: -376.7930086 | O38: 2.983144896e-06 | P38: 3.665776386e-06 | Q38: =O38*HiddenDataResult!$G$2 -> 0.002983144896 | R38: =P38*HiddenDataResult!$G$2 -> 0.003665776386 | S38: -0.0006826314909
A39: 98.35124317 | B39: -367.0518365 | C39: 98.34626197 | D39: -367.0332464 | E39: 98.35124317 | F39: -367.0518365 | G39: 98.34626197 | H39: -367.0946437 | I39: 98.35124317 | J39: -367.0518365 | K39: 98.34626197 | L39: -367.0946437 | O39: 1.222960469e-05 | P39: 3.665775923e-06 | Q39: =O39*HiddenDataResult!$G$2 -> 0.01222960469 | R39: =P39*HiddenDataResult!$G$2 -> 0.003665775923 | S39: 0.00856382877
A40: 145.4197132 | B40: -351.0742439 | C40: 145.4123481 | D40: -351.056463 | E40: 145.4197132 | F40: -351.0742439 | G40: 145.4123481 | H40: -351.1151877 | I40: 145.4197132 | J40: -351.0742439 | K40: 145.4123481 | L40: -351.1151877 | O40: 2.983144896e-06 | P40: 3.665776386e-06 | Q40: =O40*HiddenDataResult!$G$2 -> 0.002983144896 | R40: =P40*HiddenDataResult!$G$2 -> 0.003665776386 | S40: -0.0006826314909
A41: 190.0000117 | B41: -329.0896736 | C41: 189.9903887 | D41: -329.0730062 | E41: 190.0000117 | F41: -329.0896736 | G41: 189.9903887 | H41: -329.1280535 | I41: 190.0000117 | J41: -329.0896736 | K41: 189.9903887 | L41: -329.1280535 | O41: 3.969026409e-06 | P41: 3.665776339e-06 | Q41: =O41*HiddenDataResult!$G$2 -> 0.003969026409 | R41: =P41*HiddenDataResult!$G$2 -> 0.003665776339 | S41: 0.0003032500698
A42: 231.3293572 | B42: -301.4742878 | C42: 231.3176411 | D42: -301.459019 | E42: 231.3293572 | F42: -301.4742878 | G42: 231.3176411 | H42: -301.5094471 | I42: 231.3293572 | J42: -301.4742878 | K42: 231.3176411 | L42: -301.5094471 | O42: -4.139288876e-06 | P42: 3.665776746e-06 | Q42: =O42*HiddenDataResult!$G$2 -> -0.004139288876 | R42: =P42*HiddenDataResult!$G$2 -> 0.003665776746 | S42: -0.007805065622
A43: 268.7005933 | B43: -268.7005933 | C43: 268.6869844 | D43: -268.6869844 | E43: 268.7005933 | F43: -268.7005933 | G43: 268.6869844 | H43: -268.7319304 | I43: 268.7005933 | J43: -268.7005933 | K43: 268.6869844 | L43: -268.7319304 | O43: 3.969026466e-06 | P43: 3.66577634e-06 | Q43: =O43*HiddenDataResult!$G$2 -> 0.003969026466 | R43: =P43*HiddenDataResult!$G$2 -> 0.00366577634 | S43: 0.0003032501257
A44: 301.4742878 | B44: -231.3293572 | C44: 301.459019 | D44: -231.3176411 | E44: 301.4742878 | F44: -231.3293572 | G44: 301.459019 | H44: -231.3563359 | I44: 301.4742878 | J44: -231.3293572 | K44: 301.459019 | L44: -231.3563359 | O44: 2.983144896e-06 | P44: 3.665776394e-06 | Q44: =O44*HiddenDataResult!$G$2 -> 0.002983144896 | R44: =P44*HiddenDataResult!$G$2 -> 0.003665776394 | S44: -0.000682631498
A45: 329.0896736 | B45: -190.0000117 | C45: 329.0730062 | D45: -189.9903887 | E45: 329.0896736 | F45: -190.0000117 | G45: 329.0730062 | H45: -190.0221703 | I45: 329.0896736 | J45: -190.0000117 | K45: 329.0730062 | L45: -190.0221703 | O45: 1.222960469e-05 | P45: 3.66577593e-06 | Q45: =O45*HiddenDataResult!$G$2 -> 0.01222960469 | R45: =P45*HiddenDataResult!$G$2 -> 0.00366577593 | S45: 0.008563828762
A46: 351.0742439 | B46: -145.4197132 | C46: 351.056463 | D46: -145.4123481 | E46: 351.0742439 | F46: -145.4197132 | G46: 351.056463 | H46: -145.4366727 | I46: 351.0742439 | J46: -145.4197132 | K46: 351.056463 | L46: -145.4366727 | O46: 2.983144896e-06 | P46: 3.665776395e-06 | Q46: =O46*HiddenDataResult!$G$2 -> 0.002983144896 | R46: =P46*HiddenDataResult!$G$2 -> 0.003665776395 | S46: -0.000682631499
A47: 367.0518365 | B47: -98.35124317 | C47: 367.0332464 | D47: -98.34626197 | E47: 367.0518365 | F47: -98.35124317 | G47: 367.0332464 | H47: -98.36271333 | I47: 367.0518365 | J47: -98.35124317 | K47: 367.0332464 | L47: -98.36271333 | O47: 3.969026466e-06 | P47: 3.665776348e-06 | Q47: =O47*HiddenDataResult!$G$2 -> 0.003969026466 | R47: =P47*HiddenDataResult!$G$2 -> 0.003665776348 | S47: 0.0003032501178
A48: 376.7490704 | B48: -49.59995609 | C48: 376.7299892 | D48: -49.59744399 | E48: 376.7490704 | F48: -49.59995609 | G48: 376.7299892 | H48: -49.60574065 | I48: 376.7490704 | J48: -49.59995609 | K48: 376.7299892 | L48: -49.60574065 | O48: -4.139288876e-06 | P48: 3.665776755e-06 | Q48: =O48*HiddenDataResult!$G$2 -> -0.004139288876 | R48: =P48*HiddenDataResult!$G$2 -> 0.003665776755 | S48: -0.007805065631
A49: 380.0000233 | B49: -2.45562483e-12 | C49: 379.9807774 | D49: -2.45550046e-12 | E49: 380.0000233 | F49: -2.45562483e-12 | G49: 379.9807774 | H49: -2.455911216e-12 | I49: 380.0000233 | J49: -2.45562483e-12 | K49: 379.9807774 | L49: -2.455911216e-12 | O49: 3.969026466e-06 | P49: 3.665776348e-06 | Q49: =O49*HiddenDataResult!$G$2 -> 0.003969026466 | R49: =P49*HiddenDataResult!$G$2 -> 0.003665776348 | S49: 0.0003032501174
O50: -5.307018114e-07 | P50: 4.032584881e-06 | Q50: =O50*HiddenDataResult!$G$2 -> -0.0005307018114 | R50: =P50*HiddenDataResult!$G$2 -> 0.004032584881 | S50: -0.004563286693
O51: -1.160921443e-05 | P51: 4.032585448e-06 | Q51: =O51*HiddenDataResult!$G$2 -> -0.01160921443 | R51: =P51*HiddenDataResult!$G$2 -> 0.004032585448 | S51: -0.01564179987
O52: -5.307018114e-07 | P52: 4.032584881e-06 | Q52: =O52*HiddenDataResult!$G$2 -> -0.0005307018114 | R52: =P52*HiddenDataResult!$G$2 -> 0.004032584881 | S52: -0.004563286693
O53: 1.988930961e-05 | P53: 4.032583837e-06 | Q53: =O53*HiddenDataResult!$G$2 -> 0.01988930961 | R53: =P53*HiddenDataResult!$G$2 -> 0.004032583837 | S53: 0.01585672578
O54: -2.912491084e-06 | P54: 4.032585003e-06 | Q54: =O54*HiddenDataResult!$G$2 -> -0.002912491084 | R54: =P54*HiddenDataResult!$G$2 -> 0.004032585003 | S54: -0.006945076086
O55: 1.988930961e-05 | P55: 4.032583836e-06 | Q55: =O55*HiddenDataResult!$G$2 -> 0.01988930961 | R55: =P55*HiddenDataResult!$G$2 -> 0.004032583836 | S55: 0.01585672578
O56: -5.307018114e-07 | P56: 4.032584878e-06 | Q56: =O56*HiddenDataResult!$G$2 -> -0.0005307018114 | R56: =P56*HiddenDataResult!$G$2 -> 0.004032584878 | S56: -0.00456328669
O57: -1.160921443e-05 | P57: 4.032585444e-06 | Q57: =O57*HiddenDataResult!$G$2 -> -0.01160921443 | R57: =P57*HiddenDataResult!$G$2 -> 0.004032585444 | S57: -0.01564179987
O58: -5.307018114e-07 | P58: 4.032584877e-06 | Q58: =O58*HiddenDataResult!$G$2 -> -0.0005307018114 | R58: =P58*HiddenDataResult!$G$2 -> 0.004032584877 | S58: -0.004563286689
O59: 1.988930961e-05 | P59: 4.032583829e-06 | Q59: =O59*HiddenDataResult!$G$2 -> 0.01988930961 | R59: =P59*HiddenDataResult!$G$2 -> 0.004032583829 | S59: 0.01585672578
O60: -2.912491141e-06 | P60: 4.032584995e-06 | Q60: =O60*HiddenDataResult!$G$2 -> -0.002912491141 | R60: =P60*HiddenDataResult!$G$2 -> 0.004032584995 | S60: -0.006945076135
O61: 1.988930961e-05 | P61: 4.032583828e-06 | Q61: =O61*HiddenDataResult!$G$2 -> 0.01988930961 | R61: =P61*HiddenDataResult!$G$2 -> 0.004032583828 | S61: 0.01585672578
O62: -5.307018114e-07 | P62: 4.03258487e-06 | Q62: =O62*HiddenDataResult!$G$2 -> -0.0005307018114 | R62: =P62*HiddenDataResult!$G$2 -> 0.00403258487 | S62: -0.004563286682
O63: -1.160921443e-05 | P63: 4.032585437e-06 | Q63: =O63*HiddenDataResult!$G$2 -> -0.01160921443 | R63: =P63*HiddenDataResult!$G$2 -> 0.004032585437 | S63: -0.01564179986
O64: -5.307018114e-07 | P64: 4.03258487e-06 | Q64: =O64*HiddenDataResult!$G$2 -> -0.0005307018114 | R64: =P64*HiddenDataResult!$G$2 -> 0.00403258487 | S64: -0.004563286682
O65: 1.988930961e-05 | P65: 4.032583828e-06 | Q65: =O65*HiddenDataResult!$G$2 -> 0.01988930961 | R65: =P65*HiddenDataResult!$G$2 -> 0.004032583828 | S65: 0.01585672578
O66: -2.912491141e-06 | P66: 4.032584995e-06 | Q66: =O66*HiddenDataResult!$G$2 -> -0.002912491141 | R66: =P66*HiddenDataResult!$G$2 -> 0.004032584995 | S66: -0.006945076135
O67: 1.988930961e-05 | P67: 4.032583829e-06 | Q67: =O67*HiddenDataResult!$G$2 -> 0.01988930961 | R67: =P67*HiddenDataResult!$G$2 -> 0.004032583829 | S67: =Q67-R67 -> 0.01585672578
O68: -5.307018114e-07 | P68: 4.032584877e-06 | Q68: =O68*HiddenDataResult!$G$2 -> -0.0005307018114 | R68: =P68*HiddenDataResult!$G$2 -> 0.004032584877 | S68: -0.004563286689
O69: -1.160921443e-05 | P69: 4.032585444e-06 | Q69: =O69*HiddenDataResult!$G$2 -> -0.01160921443 | R69: =P69*HiddenDataResult!$G$2 -> 0.004032585444 | S69: -0.01564179987
O70: -5.307018114e-07 | P70: 4.032584878e-06 | Q70: =O70*HiddenDataResult!$G$2 -> -0.0005307018114 | R70: =P70*HiddenDataResult!$G$2 -> 0.004032584878 | S70: -0.00456328669
O71: 1.988930961e-05 | P71: 4.032583836e-06 | Q71: =O71*HiddenDataResult!$G$2 -> 0.01988930961 | R71: =P71*HiddenDataResult!$G$2 -> 0.004032583836 | S71: 0.01585672578
O72: -2.912491084e-06 | P72: 4.032585003e-06 | Q72: =O72*HiddenDataResult!$G$2 -> -0.002912491084 | R72: =P72*HiddenDataResult!$G$2 -> 0.004032585003 | S72: -0.006945076086
O73: 1.988930961e-05 | P73: 4.032583837e-06 | Q73: =O73*HiddenDataResult!$G$2 -> 0.01988930961 | R73: =P73*HiddenDataResult!$G$2 -> 0.004032583837 | S73: 0.01585672578
O74: -34.2218877 | P74: -17.18277381
O75: -35.22185751 | P75: -16.37921065
O76: 3.423828362 | P76: -5.498939038
O77: -34.2218979 | P77: -17.18272007

Sheet Translations (hidden)
A1: nb Langue | B1: English | C1: 0.365.1 | D1: 日本語 | E1: English | F1: Français | G1: Deutsch | H1: Español
A2: 5 | B2: Setup | C2: Command | D2: セットアップ | E2: Setup | F2: Commandes | G2: Setup | H2: Pedidos
B3: CMM | D3: 三次元測定機 | E3: CMM | F3: MMT | G3: KMG | H3: MMC
B4: Measurement configuration | D4: 測定概要 | E4: Measurement configuration | F4: Configuration de mesure | G4: Mess-Konfiguration | H4: Configuración de la medida
B5: DMIS sequence | D5: DMISシーケンス | E5: DMIS sequence | F5: Gamme de mesure DMIS | G5: DMIS-Sequenz | H5: Secuencia DMIS
B6: Data import and analysis | D6: データの取込み 解析 | E6: Data import and analysis | F6: Importation et analyse des données | G6: Datenimport und Analyse | H6: Importación de datos y análisis
B7: Machine | D7: 機種 | E7: Machine | F7: Machine | G7: Maschine | H7: Máquina
B8: Serial Number | D8: シリアルナンバー | E8: Serial Number | F8: Numéro de série | G8: Serien-Nr. | H8: Número de Serie
B9: Scales resolution | D9: スケール分解能 | E9: Scales resolution | F9: Résolution des règles | G9: Auflösung Wegmesssystem | H9: Resolución de las reglas
B10: Single point repeatability | D10: シングルポイント繰返精度 | E10: Single point repeatability | F10: Répétabilite d'un point de mesure | G10: Wiederholgenauigkeit Einzelpunkte | H10: Repetibilidad de punto único
B11: Probe type | D11: プローブタイプ | E11: Probe type | F11: Type du palpeur | G11: Messtaster-Typ | H11: Tipo de sonda
B12: Probe Identification | D12: プローブシリアルナンバー | E12: Probe Identification | F12: Identification du palpeur | G12: Messtaster Identifikation | H12: Identificación de sonda
B13: Write DMIS sequence… | D13: DMIS測定プログラム作成 | E13: Write DMIS sequence… | F13: Ecrire une gamme de mesure DMIS… | G13: Schreibe DMIS Sequenz…. | H13: Escribir secuencia DMIS…
B14: Data Import… | D14: データ取込み | E14: Data Import… | F14: Importer un fichier de mesure… | G14: Datenimport | H14: Importar datos…
B15: File format not supported | D15: 読み込むことのできないファイル形式です | E15: File format not supported | F15: Le format de fichier n'est pas supporté | G15: Dateiformat wird nicht unterstüzt | H15: Formato de fichero no soportado
B16: Operator | D16: 作業者 | E16: Operator | F16: Opérateur | G16: Anwender | H16: Operario
B17: MCG Identification | D17: MCG番号 | E17: MCG Identification | F17: Identification du MCG | G17: MCG Identifikation | H17: Identificación MCG
B18: Arm length | D18: アーム長さ | E18: Arm length | F18: Longueur du bras | G18: Arm Länge MCG | H18: Longitud del brazo
B19: Translation | D19: 言語 | E19: Translation | F19: Traduction | G19: Sprache | H19: Traslación
B20: Data | C20: Points | D20: データ | E20: Data | F20: Données | G20: Daten | H20: Datos
B21: File | D21: ファイル | E21: File | F21: Fichier | G21: Datei | H21: Fichero
B22: Date Time | D22: 解析日 | E22: Date Time | F22: Date Heure | G22: Datum Zeit | H22: Fecha Hora
B23: Number of points | D23: 測定点数 | E23: Number of points | F23: Nombre de points | G23: Anzahl der Punkte | H23: Número de puntos
B24: Data points | D24: データポイント | E24: Data points | F24: Points de mesure | G24: Messpunkte | H24: Puntos de datos
B25: Analysis | D25: 解析 | E25: Analysis | F25: Analyse | G25: Analyse | H25: Análisis
B26: Sphere | D26: 測定結果 | E26: Sphere | F26: Sphere | G26: Kugel | H26: Esfera
B27: Radius | D27: アーム長さ | E27: Radius | F27: Rayon | G27: Radius | H27: Radio
B28: Centre O | D28: 中心点誤差 | E28: Centre O | F28: Centre O | G28: Zentrum O | H28: Centro O
B29: min | D29: 最小値 | E29: min | F29: min | G29: min | H29: mín
B30: max | D30: 最大値 | E30: max | F30: max | G30: max | H30: máx
B31: span | D31: スパン | E31: span | F31: Etendue | G31: Spannweite | H31: lapso
B32: Standard deviation | D32: 標準偏差 | E32: Standard deviation | F32: Ecart type | G32: Standardabweichung | H32: Desviación estándar
B33: Identified geometrical errors | D33: 特定される幾何学的誤差 | E33: Identified geometrical errors | F33: Erreurs de géometrie identifiées | G33: Geometrische Fehler | H33: Errores geométricos identificados
B34: Relative scale errors | D34: 相対的スケールエラー | E34: Relative scale errors | F34: Justesses relatives | G34: Relativer Skalierfehler | H34: Errores de regla relativa
B35: Squareness | D35: 直角度 | E35: Squareness | F35: Equerrages | G35: Rechtwinkligkeit | H35: Cuadratura
B36: Pivot | D36: ピボット | E36: Pivot | F36: Pivot | G36: MCG Kugelzentrum | H36: Pivote
B37: Offsets | D37: オフセット | E37: Offsets | F37: Offsets | G37: Offset | H37: Offsets
B38: Record in Database | D38: データベースに登録 | E38: Record in Database | F38: Enregistrer dans la base de donnees | G38: Aufzeichung in Datenbank | H38: Registrar en base de datos
B39: MCG Analysis | C39: PV | D39: MCG解析 | E39: MCG Analysis | F39: Analyse MCG | G39: MCG Analyse | H39: Análisis MCG
B40: Squareness sign convention | C40: Command | D40: 座標系の設定 | E40: Squareness sign convention | F40: Convension de signe des équerrages | G40: KMG Typ | H40: Convención de signos de cuadratura
B41: DMIS Sequence | C41: FRMGamme | D41: DMISシーケンス | E41: DMIS Sequence | F41: Gamme de mesure DMIS | G41: DMIS Sequenz | H41: Secuencia DMIS
B42: Standard | D42: 標準 | E42: Standard | F42: Standard | G42: Standard | H42: Estándar
B43: Arm length | D43: アーム長さ | E43: Arm length | F43: Longueur du bras | G43: Armlänge MCG | H43: Longitud de brazo
B44: Number of points per circle | D44: 1週あたりの測定点数 | E44: Number of points per circle | F44: Nombre de points par cercle | G44: Anzahl der Punkte je Kreismessung | H44: Número de puntos por ciclo
B45: Circles latitude | D45: 円の緯度 | E45: Circles latitude | F45: Latitude des cercles | G45: Radiale Kreiswinkelposition | H45: Latitud de círculos
B46: ° north, equator, | D46: ° 北緯, 水平, | E46: ° north, equator, | F46: ° nord, équateur, | G46: ° Nord, Äquator | H46: ° norte, ecuador,
B47: ° south | D47: ° 南緯 | E47: ° south | F47: ° sud | G47: ° Süd | H47: ° sur
B48: Directory | D48: ディレクトリー | E48: Directory | F48: Répertoire | G48: Verzeichnis | H48: Directorio
B49: Generate | D49: 実行 | E49: Generate | F49: Générer | G49: Erzeuge | H49: Generar
B50: number of measurements | D50: 測定点数 | E50: number of measurements | F50: Nombre de mesures | G50: Anzahl der Messungen | H50: número de medidas
B51: Sequence saved | D51: シーケンスを保存しました | E51: Sequence saved | F51: Gamme de mesure enregistrée | G51: Sequenz gespeichert | H51: Secuencia registrada
B52: MCG sequence | D52: MCG シーケンス | E52: MCG sequence | F52: Gamme de mesure du MCG | G52: MCG Sequenz | H52: Secuencia MCG
B53: Move the stylus ball above the MCG pivot sphere | D53: スタイラスをMCGのピボットの上方に動かしてください。 | E53: Move the stylus ball above the MCG pivot sphere | F53: Positionnez le centre bille palpeur à la verticale du pivot du MCG | G53: Postitionieren Sie die Tastkugel über das MCG Kugelzentrum | H53: Mover la bola del palpador sobre la esfera del pivote del MCG
B54: Engage the MCG fork on the stylus | D54: アームフォーク部にスタイラスをセットしてください | E54: Engage the MCG fork on the stylus | F54: Engagez la fourchette du MCG sur la bille du stylet | G54: Postitionieren Sie die Tastkugel in die MCG-Armgabel | H54: Fije la horquilla del MCG en el palpador
B55: All files | D55: 全ファイル | E55: All files | F55: Tous fichiers | G55: Alle Dateien | H55: Todos los ficheros
B56: Fork length : | D56: フォーク長さ : | E56: Fork length : | F56: Longueur de fourchette : | G56: MCG Gabellänge: | H56: Longitud de la horquilla:
B57: Angle : | D57: 角度 : | E57: Angle : | F57: Angle : | G57: Winkel: | H57: Ángulo:
B58: DMIS result | D58: DMIS結果 | E58: DMIS result | F58: Résultat DMIS | G58: DMIS Ergebnis: | H58: Resultado DMIS
B59: Open measurement file | D59: 測定ファイルを開く | E59: Open measurement file | F59: Ouverture d'une mesure | G59: Öffne Datei der Messung | H59: Fichero de medición abierto
B60: File not found | D60: ファイルが見つかりません | E60: File not found | F60: Fichier non trouvé | G60: Datei nicht gefunden | H60: Fichero no encontrado
B61: Saving error | D61: 保存エラー | E61: Saving error | F61: Erreur d'enregistrement | G61: Fehler gespeichert | H61: Salvando error
B62: Chain of solids not found | D62: 座標系が見つかりません | E62: Chain of solids not found | F62: Chaine de solides non trouvée | G62: KMG Typ nicht gefunden | H62: Cadena de sólidos no encontrada
B63: The Vector Number | C63: Grahm-Schmitt | D63: ベクターナンバー | E63: The Vector Number | F63: Le vecteur n° | G63: Vektorennummer | H63: El vector nº
B64: is equal to zero! | D64: ゼロに等しい | E64: is equal to zero! | F64: est nul ! | G64: ist Null | H64: es igual a cero!
B65: is linear dependent ! | D65: 直線成分依存 | E65: is linear dependent ! | F65: est linéairement dépendant ! | G65: ist linearbedingt | H65: es linealmente dependiente!
B66: Units | D66: 単位 | E66: Units | F66: Unités | G66: Einheiten | H66: Unidades
B67: Sphere Optimisation Failure | D67: 球の最適化エラー | E67: Sphere Optimisation Failure | F67: Echec de l'optimisation de la sphère | G67: Kugeloptimierungsfehler | H67: Fallo de optimización de esfera
B68: First guess failure | D68: 初期計算エラー | E68: First guess failure | F68: Echec de la recherche d'une sphère initiale | G68: Inizierte Lösung misslungen | H68: Fallo de primera estimación
B69: Charts gain | C69: Points | D69: チャートゲイン | E69: Charts gain | F69: Amplification | G69: Grafikplot | H69: Amplifiación
B70: Database | C70: DataBase | D70: データベース | E70: Database | F70: Base de données | G70: Datenbank | H70: Base de datos
B71: Data errors and identified geometrical errors in | C71: PV | D71: 測定点誤差 | E71: Data errors and identified geometrical errors in | F71: Erreurs de forme et défauts géometriques analysés en | G71: Datenfehler und identifizierte Geometrische Fehler in | H71: Errores de datos y errores geométricos identificados en
B72: Residual form errors in | D72: 幾何学誤差修正後の空間精度 | E72: Residual form errors in | F72: Erreurs de forme résiduelles en | G72: Restliche Formfehler in | H72: Errores residuales de forma en
B73: MCG | C73: DataBase | D73: MCG | E73: MCG | F73: MCG | G73: Maschinenprüflehre MCG | H73: MCG
B74: Data form errors | C74: PV | D74: 測定点誤差 | E74: Data form errors | F74: Ecarts mesurés | G74: Daten Formfehler | H74: Errores de forma de datos
B75: Identified geometrical form errors | D75: ベストフィットで算出した測定点誤差 | E75: Identified geometrical form errors | F75: Ecarts dus aux erreurs de géométrie identifiées | G75: Identifizierte geometrische Formfehler | H75: Errores de forma geométrica identificados
B76: Residual errors if identified geometrical errors were corrected | D76: 幾何学誤差修正後の測定点誤差 | E76: Residual errors if identified geometrical errors were corrected | F76: Ecarts Résiduels avec correction des erreurs de geometrie identifiees | G76: Restliche Fehler wenn identifizierte geometrische Fehler korrigiert wurden | H76: Errores residuales si los errores de forma geométrica fueron corregidos
B77: Measurement results archived | C77: DataBase | D77: 測定結果は登録されました | E77: Measurement results archived | F77: Résultat de mesure archivée | G77: Erreichte Messergebnisse | H77: Resultados de mediciones archivados
B78: Database recording | D78: データベースに登録中 | E78: Database recording | F78: Enregistrement dans la base de données | G78: Aufzeichnung Datenbank | H78: Almacenamiento en la base de datos
B79: Database charts | D79: チャート | E79: Database charts | F79: Graphiques de suivie | G79: Datenbankplots | H79: Gráficos de la base de datos
B80: Analysis | C80: PV | D80: 解析 | E80: Analysis | F80: Analyse | G80: Analyse | H80: Análisis
B81: Comments | C81: FrmAboutBox | D81: コメント | E81: Comments | F81: Commentaires | G81: Kommentar | H81: Comentarios
B82: Version 0.365.1 | D82: ="バージョン " & $C$1 -> バージョン 0.365.1 | E82: ="Version " & $C$1 -> Version 0.365.1 | F82: ="Version " & $C$1 -> Version 0.365.1 | G82: ="Version " & $C$1 -> Version 0.365.1 | H82: ="Versión " & $C$1 -> Versión 0.365.1
B83: MCG Tools | D83: MCGツール | E83: MCG Tools | F83: MCG Tools | G83: MCG Bauteile | H83: Herramientas MCG
B84: Close | D84: 閉じる | E84: Close | F84: Fermer | G84: Schließen | H84: Cerrar
B85: Calculate | D85: 解析実行 | E85: Calculate | F85: Calculer | G85: Berechnen | H85: Calcular
B86: Measuring conditions | D86: 測定環境 | E86: Measuring conditions | F86: Conditions de mesure | G86: Messbedingungen | H86: Condiciones de medición
B87: Temperature | D87: 温度 | E87: Temperature | F87: Température | G87: Temperatur | H87: Temperatura
B88: Atmospheric pressure | D88: 気圧 | E88: Atmospheric pressure | F88: Pression atmospherique | G88: Luftdruck | H88: Presión atmosférica
B89: Air humidity | D89: 湿度 | E89: Air humidity | F89: Humidité de l'air | G89: Luftfeuchtigkeit | H89: Humedad del aire
B90: ( Alt + Ent for next ligne ) | D90: ( Alt + Ent 次行) | E90: ( Alt + Ent for next ligne ) | F90: ( Alt + Ent pour saut de ligne ) | G90: (Alt + Enter für nächste line ) | H90: ( Alt + Ent para trayectoria siguiente )
B91: Manufacturer Name | D91: メーカー名 | E91: Manufacturer Name | F91: Nom du constructeur | G91: Hersteller Name | H91: Nombre del fabricante
B92: Type/N° of CMM | D92: 三次元測定機タイプ/ナンバー | E92: Type/N° of CMM | F92: Type/N° de machine | G92: Typ/Nr des KMG | H92: Tipo/nº de MMC
B93: MCG Serial number | D93: MCGシリアルナンバー | E93: MCG Serial number | F93: N° de série du MCG | G93: Serien Nr. MCG | H93: Número de serie del MCG
B94: TP2, … | D94: TP2, … | E94: TP2, … | F94: TP2, … | G94: TP2, … | H94: TP2, …
B95: Serial Number | D95: シリアルナンバー | E95: Serial Number | F95: N° Série | G95: Seriennummer | H95: Número de serie
B96: Operator Name | D96: 作業者名 | E96: Operator Name | F96: Nom de l'opérateur | G96: Name des Prüfers | H96: Nombre del operario
B97: (L in mm) | C97: Command | D97: (L:mm) | E97: (L in mm) | F97: (L en mm) | G97: (L in mm) | H97: (L en mm)
B98: Admissible error | D98: 許容誤差 | E98: Admissible error | F98: Erreur admissible | G98: Zulässiger Fehler | H98: Error admisible
B99: Max measured error | D99: 最大誤差 | E99: Max measured error | F99: Erreur maxi mesurée | G99: Max gemessener Fehler | H99: Máximo error medido
B100: Max residual error | D100: 最大残差 | E100: Max residual error | F100: Erreur maxi résiduelle | G100: Max restliche Fehler | H100: Máximo error residual
B101: Form errors unwrapped in XY plan | C101: PV | D101: XY平面の空間精度異常 | E101: Form errors unwrapped in XY plan | F101: Erreur de forme dépliées sur le plan XY | G101: Formfehler in XY-Ebene | H101: Errores de forma desarrollados en el plano XY
B102: Measure the MCG pivot sphere | C102: FRM Gamme | D102: MCGのピボット球を測定してください | E102: Measure the MCG pivot sphere | F102: Palpez la sphere pivot du MCG | G102: Messe das Zentrum der MCG-Kugel | H102: Medir la esfera del pivote del MCG
B103: The results are exported to | D103: 結果をエクスポートします | E103: The results are exported to | F103: Les resultats sont sauvegardés dans | G103: Die Ergebnisse wurden exportiert auf | H103: Los resultados son exportados a
B104: Current form errors | D104: 空間精度 | E104: Current form errors | F104: Erreurs de forme actuelles | G104: Momentaner Formfehler | H104: Errores de forma actual
B105: Form errors if identified geometrical errors were corrected | D105: 特定された幾何学的誤差を修正した場合の空間精度 | E105: Form errors if identified geometrical errors were corrected | F105: Erreurs de forme avec correction des erreurs de géométrie identifiées | G105: Formfehler falls geometrische Fehler korrekt | H105: Errores de forma si los errores geometricos identificados fueron corregidos
B106: Target Points | D106: 測定点座標 | E106: Target Points | F106: Points théoriques | G106: Nominale Punkte | H106: Puntos teóricos
B107: Target points only | D107: 測定店座標のみ | E107: Target points only | F107: Points théoriques uniquement | G107: Ausschließlich nominale Punkte | H107: Sólo puntos teóricos
B108: Chain of solids X-Y-Z | D108: X-Y-Z座標系 | E108: Chain of solids X-Y-Z | F108: Chaine de solides X-Y-Z | G108: KMG Typ X-Y-Z | H108: Cadena de sólidos X-Y-Z
B109: Chain of solids Y-X-Z | D109: Y-X-Z座標系 | E109: Chain of solids Y-X-Z | F109: Chaine de solides Y-X-Z | G109: KMG Typ Y-X-Z | H109: Cadena de sólidos Y-X-Z
B110: Chain of solids X-Z-Y | D110: X-Z-Y座標系 | E110: Chain of solids X-Z-Y | F110: Chaine de solides X-Z-Y | G110: KMG Typ X-Z-Y | H110: Cadena de sólidos X-Z-Y
B111: UCC controller | D111: UCCコントローラー | E111: UCC controller | F111: UCC controller | G111: UCC controller | H111: Controlador UCC
B112: Renishaw, Inc | C112: Adress1 | D112: レニショー株式会社 | E112: Renishaw, Inc | F112: Renishaw SAS | G112: Renishaw, Inc | H112: Renishaw, Inc
B113: 5277 Trillium Boulevard | C113: Adress2 | D113: 東京都新宿区四谷 | E113: 5277 Trillium Boulevard | F113: 15 rue Albert Einstein | G113: 5277 Trillium Boulevard | H113: 5277 Trillium Boulevard
B114: Hoffman Estates, IL, 60175 | C114: Adress3 | D114: 4-29-8 | E114: Hoffman Estates, IL, 60175 | F114: 77100 Champs sur Marne | G114: Hoffman Estates, IL, 60175 | H114: Hoffman Estates, IL, 60175
B115: Tel. (847) 286-9953 | C115: Adress4 | D115: Tel. 03-5366-5316 | E115: Tel. (847) 286-9953 | F115: Tel. +33 (0) 1 64 61 84 84 | G115: Tel. (847) 286-9953 | H115: Tel. (847) 286-9953
B116: DMO File Name | C116: FRM Gamme | D116: DMOファイル名 | E116: DMO File Name | F116: Nom du fichier DMO | G116: DMO Datei | H116: Fichero DMO

Sheet HiddenDataResult (hidden)
E1: Translation scale | F1: 0 | G1: 1 | H1: mm | J1: DataUnit | K1: mm | L1: ArmLength | M1: 101 | N1: Standard | O1: VDI/VDE 2617 U3 | P1: langues | Q1: 日本語 | R1: Pt per Cir | S1: 8 | T1: DMIS | U1: MODUS
A2: Radius | B2: 380.0000233 | C2: =B2*$G$1 -> 380.0000233 | E2: Translation error scale | F2: 0 | G2: 1000 | H2: um | I2: um/m | J2: 1 | K2: inch | M2: 151 | N2: 3 | O2: ASME B89.4.1 | Q2: English | R2: 3 | S2: 16 | T2: 1 | U2: Metrolog
A3: x | B3: -1.64882172e-14 | C3: =B3*$G$1 -> -1.64882172e-14 | E3: Rotation error scale | F3: 0 | G3: 1000000 | H3: uRad | M3: 226 | O3: ISO 10360-2 MPEe | Q3: Français | S3: 24 | U3: PC-DMIS
A4: y | B4: -6.879365443e-15 | C4: =B4*$G$1 -> -6.879365443e-15 | M4: 380 | Q4: Deutsch | U4: Mitutoyo GeoMeasure 6000
A5: z | B5: -3.960235152e-06 | C5: =B5*$G$1 -> -3.960235152e-06 | E5: Chaine de solide Index | F5: =G5-1 -> 3 | G5: 4 | H5: linked to object | M5: 532 | Q5: Español
A6: min | B6: -2.330849247e-05 | C6: =B6*$G$2 -> -0.02330849247 | M6: 685
A7: max | B7: 1.988930961e-05 | C7: =B7*$G$2 -> 0.01988930961 | E7: Adress Index | F7: 0 | G7: init the about box with the correct address
A8: etendus | B8: 4.319780209e-05 | C8: =B8*$G$2 -> 0.04319780209
A9: STD | B9: 1.07417197e-05 | C9: =B9*$G$2 -> 0.0107417197 | E9: Mesure achivee | F9: 1
A10: JX | B10: -2.025884198e-08 | C10: =B10*1000000 -> -0.02025884198
A11: JY | B11: -2.025884197e-08 | C11: =B11*1000000 -> -0.02025884197
A12: JZ | B12: 4.664975624e-08 | C12: =B12*1000000 -> 0.04664975624
A13: XY | B13: -7.424060321e-25 | C13: =B13*$G$3 -> -7.424060321e-19
A14: XZ | B14: 3.816715949e-24 | C14: =B14*$G$3 -> 3.816715949e-18
A15: ZX | B15: 2.755669953e-18 | C15: =B15*$G$3 -> 2.755669953e-12
A16: Temperature | B16: 20 | C16: =B16 -> 20 | D16: degC
A17: Pressure | B17: 1013 | C17: =B17 -> 1013 | D17: mbar
A18: Humidity | B18: 50 | C18: =B18 -> 50
A19: tx | B19: 7.848304729e-15 | C19: =B19*$G$2 -> 7.848304729e-12
A20: ty | B20: -1.372434159e-22 | C20: -1.372434159e-19
A21: tz | B21: -1.907064766e-06 | C21: -0.001907064766
A22: min | B22: -1.564179987e-05 | C22: -0.01564179987
A23: max | B23: 1.712765621e-05 | C23: 0.01712765621
A24: etendue | B24: 3.276945609e-05 | C24: 0.03276945609
A25: std | B25: 9.236453146e-06 | C25: 0.009236453146
A26: Date | B26: 2015-04-07T18:08:36
A28: DateMin | B28: =MIN(Database!A5:A65536) -> 0
A29: DateMax | B29: =MAX(Database!A5:A65536) -> 0
A31: U3 | B31: =IF(Setup!G9=0,Setup!F8/1000,MIN(Setup!F8+HiddenDataResult!B2/Setup!G9,Setup!H8)/1000) -> 0.004020000093 | C31: =B31*$G$2 -> 4.020000093
A32: U3Data | B32: =MAX(B7,-B6) -> 2.330849247e-05 | C32: =B32*$G$2 -> 0.02330849247
A33: U3Geo | B33: =MAX(B23,-B22) -> 1.712765621e-05 | C33: =B33*$G$2 -> 0.01712765621
A35: JXSigma | B35: 0 | C35: =B35*1000000 -> 0
A36: JYSigma | B36: 0 | C36: =B36*1000000 -> 0
A37: JZSigma | B37: 0 | C37: =B37*1000000 -> 0
A38: XY sigma | B38: 0 | C38: =B38*$G$3 -> 0
A39: YZSigma | B39: 0 | C39: =B39*$G$3 -> 0
A40: ZXSigma | B40: 0 | C40: =B40*$G$3 -> 0
